fUSD/lending_fUSD_20240318
["ID","MTS","AMOUNT","RATE_DAILY","PERIOD"]
[319467173,1710798648753,-500.0,0.00021917,2]
[319467174,1710798648763,-1155.38,0.00021917,2]
[319467175,1710798648772,-500.0,0.00021917,2]
[319467176,1710798648782,-500.0,0.00021917,2]
[319467177,1710798648791,-1827.23,0.00021917,2]
[319467178,1710798648802,-500.0,0.00021917,2]
[319467179,1710798648813,-500.0,0.00021917,2]
[319467180,1710798648822,-500.0,0.00021917,2]
[319467181,1710798648832,-448.50586803,0.00021917,2]
[319467182,1710798648842,-1248.15,0.00021917,2]
[319467183,1710798648852,-2171.28,0.00021917,2]
[319467184,1710798648861,-648.59,0.00021917,2]
[319467185,1710798648871,-500.0,0.00021917,2]
[319467186,1710798648880,-722.91,0.00021917,2]
[319467187,1710798648889,-500.0,0.00021917,2]
[319467188,1710798648898,-500.0,0.00021917,2]
[319467189,1710798648908,-500.0,0.00021917,2]
[319467190,1710798648917,-1125.86,0.00021917,2]
[319467191,1710798648926,-151.0,0.00021917,2]
[319467192,1710798648936,-2213.59,0.00021917,2]
[319467193,1710798648945,-389.04548297,0.00021917,2]
[319467194,1710798648954,-500.0,0.00021917,2]
[319467195,1710798648964,-500.0,0.00021917,2]
[319467196,1710798648973,-500.0,0.00021917,2]
[319467197,1710798648982,-500.0,0.00021917,2]
[319467198,1710798648992,-500.0,0.00021917,2]
[319467199,1710798649001,-588.53007635,0.00021917,2]
[319467200,1710798649011,-500.0,0.00021917,2]
[319467201,1710798649021,-500.0,0.00021917,2]
[319467202,1710798649031,-1588.27,0.00021917,2]
[319467203,1710798649040,-794.94,0.00021917,2]
[319467204,1710798649050,-500.0,0.00021917,2]
[319467205,1710798649062,-500.0,0.00021917,2]
[319467206,1710798649072,-500.0,0.00021917,2]
[319467207,1710798649082,-3539.26,0.00021917,2]
[319467208,1710798649091,-919.5,0.00021917,2]
[319467209,1710798649101,-500.0,0.00021917,2]
[319467210,1710798649111,-500.0,0.00021917,2]
[319467211,1710798649120,-500.0,0.00021917,2]
[319467212,1710798649130,-500.0,0.00021917,2]
[319467213,1710798649139,-2000.0,0.00021917,2]
[319467214,1710798649148,-692.06,0.00021917,2]
[319467215,1710798649159,-500.0,0.00021917,2]
[319467216,1710798649168,-500.0,0.00021917,2]
[319467217,1710798649177,-500.0,0.00021917,2]
[319467218,1710798649187,-500.0,0.00021917,2]
[319467219,1710798649196,-500.0,0.00021917,2]
[319467220,1710798649206,-500.0,0.00021917,2]
[319467221,1710798649216,-500.0,0.00021917,2]
[319467222,1710798649226,-500.0,0.00021917,2]
[319467223,1710798649238,-1725.99,0.00021917,2]
[319467224,1710798649256,-500.0,0.00021917,2]
[319467225,1710798649270,-720.68,0.00021917,2]
[319467226,1710798649280,-1026.68,0.00021917,2]
[319467227,1710798649290,-500.0,0.00021917,2]
[319467228,1710798649301,-500.0,0.00021917,2]
[319467229,1710798649313,-500.0,0.00021917,2]
[319467230,1710798649323,-500.0,0.00021917,2]
[319467231,1710798649332,-500.0,0.00021917,2]
[319467232,1710798649342,-500.0,0.00021917,2]
[319467233,1710798649351,-500.0,0.00021917,2]
[319467234,1710798649361,-177.90437,0.00021917,2]
[319467235,1710798649371,-500.0,0.00021917,2]
[319467236,1710798649381,-500.0,0.00021917,2]
[319467237,1710798649390,-500.0,0.00021917,2]
[319467238,1710798649400,-1135.54,0.00021917,2]
[319467239,1710798649409,-500.0,0.00021917,2]
[319467240,1710798649419,-177.90437,0.00021917,2]
[319467241,1710798649428,-546.71,0.00021917,2]
[319467242,1710798649438,-500.37,0.00021917,2]
[319467243,1710798649447,-805.6,0.00021917,2]
[319467244,1710798649458,-1009.45,0.00021917,2]
[319467245,1710798649468,-500.0,0.00021917,2]
[319467246,1710798649478,-862.15,0.00021917,2]
[319467247,1710798649488,-500.0,0.00021917,2]
[319467248,1710798649502,-500.0,0.00021917,2]
[319467249,1710798649520,-1406.35,0.00021917,2]
[319467250,1710798649538,-500.0,0.00021917,2]
[319467251,1710798649547,-674.48,0.00021917,2]
[319467252,1710798649558,-500.0,0.00021917,2]
[319467253,1710798649568,-4792.81,0.00021917,2]
[319467254,1710798649578,-1295.98,0.00021917,2]
[319467255,1710798649587,-500.0,0.00021917,2]
[319467256,1710798649596,-864.53,0.00021917,2]
[319467257,1710798649606,-500.0,0.00021917,2]
[319467258,1710798649615,-1081.19,0.00021917,2]
[319467259,1710798649624,-500.0,0.00021917,2]
[319467260,1710798649634,-651.84,0.00021917,2]
[319467261,1710798649643,-500.0,0.00021917,2]
[319467262,1710798649653,-539.22,0.00021917,2]
[319467263,1710798649662,-675.29,0.00021917,2]
[319467264,1710798649672,-500.0,0.00021917,2]
[319467265,1710798649681,-601.7,0.00021917,2]
[319467266,1710798649879,-504.983527,0.00021917,2]
[319467267,1710798649907,-1102.43,0.00021917,2]
[319467268,1710798649916,-1018.78,0.00021917,2]
[319467269,1710798649925,-2166.84,0.00021917,2]
[319467270,1710798649934,-500.0,0.00021917,2]
[319467271,1710798649944,-1212.73,0.00021917,2]
[319467272,1710798649953,-500.0,0.00021917,2]
[319467273,1710798649962,-500.0,0.00021917,2]
[319467274,1710798649971,-534.7,0.00021917,2]
[319467275,1710798649980,-500.0,0.00021917,2]
[319467276,1710798649989,-504.983527,0.00021917,2]
[319467277,1710798649998,-500.0,0.00021917,2]
[319467278,1710798650007,-500.0,0.00021917,2]
[319467279,1710798650016,-500.0,0.00021917,2]
[319467280,1710798650025,-500.0,0.00021917,2]
[319467281,1710798650035,-740.22,0.00021917,2]
[319467282,1710798650045,-622.73,0.00021917,2]
[319467283,1710798650055,-500.67904318,0.00021917,2]
[319467284,1710798650064,-1628.03,0.00021917,2]
[319467285,1710798650074,-500.0,0.00021917,2]
[319467286,1710798650083,-2832.84,0.00021917,2]
[319467287,1710798650093,-500.0,0.00021917,2]
[319467288,1710798650102,-1215.17,0.00021917,2]
[319467289,1710798650111,-506.55,0.00021917,2]
[319467290,1710798650120,-220.40777196,0.00021917,2]
[319467291,1710798650129,-500.0,0.00021917,2]
[319467292,1710798650138,-2142.53,0.00021917,2]
[319467293,1710798650148,-308.85,0.00021917,2]
[319467294,1710798650157,-562.75,0.00021917,2]
[319467295,1710798650166,-606.08,0.00021917,2]
[319467296,1710798650175,-747.17,0.00021917,2]
[319467297,1710798650184,-915.85,0.00021917,2]
[319467298,1710798650194,-500.0,0.00021917,2]
[319467299,1710798650203,-500.0,0.00021917,2]
[319467300,1710798650213,-500.0,0.00021917,2]
[319467301,1710798650222,-500.0,0.00021917,2]
[319467302,1710798650232,-1791.08,0.00021917,2]
[319467303,1710798650246,-1263.05,0.00021917,2]
[319467304,1710798650255,-151.0,0.00021917,2]
[319467305,1710798650265,-500.0,0.00021917,2]
[319467306,1710798650274,-6957.28,0.00021917,2]
[319467307,1710798650285,-500.0,0.00021917,2]
[319467308,1710798650295,-674.271513,0.00021917,2]
[319467309,1710798650305,-2447.62929,0.00021917,2]
[319467310,1710798650314,-637.88,0.00021917,2]
[319467311,1710798650324,-500.0,0.00021917,2]
[319467312,1710798650333,-500.0,0.00021917,2]
[319467313,1710798650342,-13.20280942,0.00021917,2]
[319467314,1710798651109,-1241.8350967,0.00021917,2]
[319467315,1710798651121,-881.41209388,0.00021917,2]
[319467316,1710798651131,-1994.08,0.00021917,2]
[319467317,1710798651140,-500.0,0.00021917,2]
[319467318,1710798651149,-500.0,0.00021917,2]
[319467319,1710798651158,-500.0,0.00021917,2]
[319467320,1710798651168,-436.99215662,0.00021917,2]
[319467321,1710798651188,-571.60784338,0.00021917,2]
[319467322,1710798651197,-500.0,0.00021917,2]
[319467323,1710798651206,-500.0,0.00021917,2]
[319467324,1710798651215,-500.0,0.00021917,2]
[319467325,1710798651225,-500.37318753,0.00021917,2]
[319467326,1710798651234,-679.55,0.00021917,2]
[319467327,1710798651246,-500.0,0.00021917,2]
[319467328,1710798651256,-500.0,0.00021917,2]
[319467329,1710798651265,-500.0,0.00021917,2]
[319467330,1710798651275,-2344.21,0.00021917,2]
[319467331,1710798651285,-8401.25,0.00021917,2]
[319467332,1710798651295,-500.0,0.00021917,2]
[319467333,1710798651305,-1405.56,0.00021917,2]
[319467334,1710798651314,-500.0,0.00021917,2]
[319467335,1710798651326,-654.69,0.00021917,2]
[319467336,1710798651335,-500.0,0.00021917,2]
[319467337,1710798651344,-863.3,0.00021917,2]
[319467338,1710798651353,-500.0,0.00021917,2]
[319467339,1710798651362,-500.0,0.00021917,2]
[319467340,1710798651371,-534.17,0.00021917,2]
[319467341,1710798651381,-500.0,0.00021917,2]
[319467342,1710798651604,-500.0,0.00021917,2]
[319467343,1710798651614,-500.0,0.00021917,2]
[319467344,1710798651623,-500.0,0.00021917,2]
[319467345,1710798651633,-500.0,0.00021917,2]
[319467346,1710798651642,-900.7,0.00021917,2]
[319467347,1710798651652,-500.0,0.00021917,2]
[319467348,1710798651662,-946.38,0.00021917,2]
[319467349,1710798651671,-1943.39,0.00021917,2]
[319467350,1710798651681,-500.0,0.00021917,2]
[319467351,1710798651690,-500.0,0.00021917,2]
[319467352,1710798651699,-17045.58,0.00021917,2]
[319467353,1710798651709,-500.0,0.00021917,2]
[319467354,1710798651718,-500.0,0.00021917,2]
[319467355,1710798651726,-502.32,0.00021917,2]
[319467356,1710798651736,-735.13,0.00021917,2]
[319467357,1710798651745,-500.0,0.00021917,2]
[319467358,1710798651755,-500.0,0.00021917,2]
[319467359,1710798651764,-500.0,0.00021917,2]
[319467360,1710798651773,-690.45,0.00021917,2]
[319467361,1710798651782,-500.0,0.00021917,2]
[319467362,1710798651791,-2169.05,0.00021917,2]
[319467363,1710798651800,-865.46,0.00021917,2]
[319467364,1710798651810,-545.92568585,0.00021917,2]
[319467365,1710798651819,-1504.55,0.00021917,2]
[319467366,1710798651828,-500.0,0.00021917,2]
[319467367,1710798651838,-500.0,0.00021917,2]
[319467368,1710798651847,-1528.6,0.00021917,2]
[319467369,1710798651856,-500.0,0.00021917,2]
[319467370,1710798651865,-1341.26,0.00021917,2]
[319467371,1710798651874,-1912.97,0.00021917,2]
[319467372,1710798651883,-546.54,0.00021917,2]
[319467373,1710798651891,-513.04264585,0.00021917,2]
[319467374,1710798651900,-500.0,0.00021917,2]
[319467375,1710798651910,-624.72,0.00021917,2]
[319467376,1710798651919,-500.0,0.00021917,2]
[319467377,1710798651928,-500.0,0.00021917,2]
[319467378,1710798651937,-500.0,0.00021917,2]
[319467379,1710798651946,-500.0,0.00021917,2]
[319467380,1710798651955,-1382.42,0.00021917,2]
[319467381,1710798651963,-500.0,0.00021917,2]
[319467382,1710798651973,-500.0,0.00021917,2]
[319467383,1710798651982,-500.0,0.00021917,2]
[319467384,1710798651990,-500.0,0.00021917,2]
[319467385,1710798651999,-1942.61,0.00021917,2]
[319467386,1710798652009,-1424.0,0.00021917,2]
[319467387,1710798652018,-500.0,0.00021917,2]
[319467388,1710798652027,-655.26,0.00021917,2]
[319467389,1710798652036,-500.0,0.00021917,2]
[319467390,1710798652045,-500.0,0.00021917,2]
[319467391,1710798652055,-1893.66,0.00021917,2]
[319467392,1710798652065,-1805.36,0.00021917,2]
[319467393,1710798652074,-2429.09,0.00021917,2]
[319467394,1710798652083,-501.15,0.00021917,2]
[319467395,1710798652093,-500.0,0.00021917,2]
[319467396,1710798652102,-500.0,0.00021917,2]
[319467397,1710798652112,-500.0,0.00021917,2]
[319467398,1710798652121,-3089.06,0.00021917,2]
[319467399,1710798652130,-500.0,0.00021917,2]
[319467400,1710798652139,-653.01791024,0.00021917,2]
[319467401,1710798652149,-1542.84,0.00021917,2]
[319467402,1710798652158,-759.26,0.00021917,2]
[319467403,1710798652166,-725.91,0.00021917,2]
[319467404,1710798652176,-500.0,0.00021917,2]
[319467405,1710798652185,-500.0,0.00021917,2]
[319467406,1710798652194,-500.0,0.00021917,2]
[319467407,1710798652202,-795.05,0.00021917,2]
[319467408,1710798652212,-1187.63,0.00021917,2]
[319467409,1710798652222,-703.78,0.00021917,2]
[319467410,1710798652233,-1736.4,0.00021917,2]
[319467411,1710798652248,-500.0,0.00021917,2]
[319467412,1710798652257,-1050.9,0.00021917,2]
[319467413,1710798652267,-4250.44,0.00021917,2]
[319467414,1710798652276,-230.28324153,0.00021917,2]
[319467415,1710798652287,-3264.02,0.00021917,2]
[319467416,1710798652296,-752.31,0.00021917,2]
[319467417,1710798652306,-2713.22,0.00021917,2]
[319467418,1710798652315,-886.95,0.00021917,2]
[319467419,1710798652325,-500.0,0.00021917,2]
[319467420,1710798652335,-3109.65,0.00021917,2]
[319467421,1710798652344,-568.0,0.00021917,2]
[319467422,1710798652353,-500.0,0.00021917,2]
[319467423,1710798652361,-622.35,0.00021917,2]
[319467424,1710798652371,-705.36,0.00021917,2]
[319467425,1710798652380,-500.0,0.00021917,2]
[319467426,1710798652389,-604.29,0.00021917,2]
[319467427,1710798652398,-660.07,0.00021917,2]
[319467428,1710798652407,-500.0,0.00021917,2]
[319467429,1710798652417,-2137.22,0.00021917,2]
[319467430,1710798652426,-500.0,0.00021917,2]
[319467431,1710798652435,-500.0,0.00021917,2]
[319467432,1710798652444,-500.0,0.00021917,2]
[319467433,1710798652453,-500.0,0.00021917,2]
[319467434,1710798652463,-500.0,0.00021917,2]
[319467435,1710798652472,-500.0,0.00021917,2]
[319467436,1710798652481,-642.48,0.00021917,2]
[319467437,1710798652490,-500.0,0.00021917,2]
[319467438,1710798652499,-1079.31,0.00021917,2]
[319467439,1710798652509,-3654.61,0.00021917,2]
[319467440,1710798652518,-1400.64,0.00021917,2]
[319467441,1710798652527,-2433.57,0.00021917,2]
[319467442,1710798652536,-500.0,0.00021917,2]
[319467443,1710798652545,-720.86,0.00021917,2]
[319467444,1710798652555,-500.0,0.00021917,2]
[319467445,1710798652564,-3271.94,0.00021917,2]
[319467446,1710798652573,-500.0,0.00021917,2]
[319467447,1710798652583,-151.0,0.00021917,2]
[319467448,1710798652592,-500.0,0.00021917,2]
[319467449,1710798652602,-1186.1,0.00021917,2]
[319467450,1710798652611,-5168.88,0.00021917,2]
[319467451,1710798652620,-500.0,0.00021917,2]
[319467452,1710798652629,-2513.19,0.00021917,2]
[319467453,1710798652638,-3251.2,0.00021917,2]
[319467454,1710798652647,-500.0,0.00021917,2]
[319467455,1710798652656,-848.86,0.00021917,2]
[319467456,1710798652666,-1400.24,0.00021917,2]
[319467457,1710798652674,-732.8,0.00021917,2]
[319467458,1710798652685,-2561.6,0.00021917,2]
[319467459,1710798652694,-1275.46,0.00021917,2]
[319467460,1710798652703,-500.0,0.00021917,2]
[319467461,1710798652712,-682.67,0.00021917,2]
[319467462,1710798652734,-2411.14,0.00021917,2]
[319467463,1710798652751,-500.0,0.00021917,2]
[319467464,1710798652770,-500.0,0.00021917,2]
[319467465,1710798652789,-500.0,0.00021917,2]
[319467466,1710798652805,-992.44,0.00021917,2]
[319467467,1710798652823,-674.21,0.00021917,2]
[319467468,1710798652840,-853.9,0.00021917,2]
[319467469,1710798652858,-2836.57,0.00021917,2]
[319467470,1710798652875,-500.0,0.00021917,2]
[319467471,1710798652892,-3731.65,0.00021917,2]
[319467472,1710798652910,-500.0,0.00021917,2]
[319467473,1710798652929,-1060.28,0.00021917,2]
[319467474,1710798652941,-876.46,0.00021917,2]
[319467475,1710798652957,-154.056552,0.00021917,2]
[319467476,1710798652973,-742.82,0.00021917,2]
[319467477,1710798652987,-155.0,0.00021917,2]
[319467478,1710798653001,-500.0,0.00021917,2]
[319467479,1710798653022,-500.0,0.00021917,2]
[319467480,1710798653036,-845.68,0.00021917,2]
[319467481,1710798653052,-1517.99,0.00021917,2]
[319467482,1710798653068,-500.0,0.00021917,2]
[319467483,1710798653082,-1673.06,0.00021917,2]
[319467484,1710798653097,-873.35,0.00021917,2]
[319467485,1710798653112,-500.0,0.00021917,2]
[319467486,1710798653127,-500.0,0.00021917,2]
[319467487,1710798653142,-8602.71,0.00021917,2]
[319467488,1710798653157,-301.05222362,0.00021917,2]
[319467489,1710798653171,-500.0,0.00021917,2]
[319467490,1710798653187,-1621.58,0.00021917,2]
[319467491,1710798653202,-1139.15,0.00021917,2]
[319467492,1710798653216,-503.78676265,0.00021917,2]
[319467493,1710798653233,-992.56,0.00021917,2]
[319467494,1710798653257,-500.0,0.00021917,2]
[319467495,1710798653273,-803.46,0.00021917,2]
[319467496,1710798653288,-500.0,0.00021917,2]
[319467497,1710798653304,-500.0,0.00021917,2]
[319467498,1710798653320,-695.838024,0.00021917,2]
[319467499,1710798653336,-500.0,0.00021917,2]
[319467500,1710798653351,-652.0,0.00021917,2]
[319467501,1710798653366,-151.0,0.00021917,2]
[319467502,1710798653381,-2050.69,0.00021917,2]
[319467503,1710798653396,-500.0,0.00021917,2]
[319467504,1710798653411,-2741.02,0.00021917,2]
[319467505,1710798653426,-1430.64,0.00021917,2]
[319467506,1710798653441,-500.0,0.00021917,2]
[319467507,1710798653457,-1223.71,0.00021917,2]
[319467508,1710798653472,-500.0,0.00021917,2]
[319467509,1710798653487,-695.838024,0.00021917,2]
[319467510,1710798653501,-1515.34,0.00021917,2]
[319467511,1710798653516,-530.4,0.00021917,2]
[319467512,1710798653530,-1529.92,0.00021917,2]
[319467513,1710798653545,-2212.2,0.00021917,2]
[319467514,1710798653560,-698.77,0.00021917,2]
[319467515,1710798653574,-3969.74,0.00021917,2]
[319467516,1710798653588,-1686.01,0.00021917,2]
[319467517,1710798653602,-500.0,0.00021917,2]
[319467518,1710798653616,-500.0,0.00021917,2]
[319467519,1710798653631,-500.0,0.00021917,2]
[319467520,1710798653645,-2034.99,0.00021917,2]
[319467521,1710798653662,-500.0,0.00021917,2]
[319467522,1710798653675,-805.62,0.00021917,2]
[319467523,1710798653690,-500.0,0.00021917,2]
[319467524,1710798653706,-916.08,0.00021917,2]
[319467525,1710798653721,-2992.46,0.00021917,2]
[319467526,1710798653735,-1613.82,0.00021917,2]
[319467527,1710798653749,-1177.38,0.00021917,2]
[319467528,1710798653764,-1412.37,0.00021917,2]
[319467529,1710798653779,-878.66,0.00021917,2]
[319467530,1710798653794,-5983.77,0.00021917,2]
[319467531,1710798653808,-500.0,0.00021917,2]
[319467532,1710798653823,-151.0,0.00021917,2]
[319467533,1710798653838,-500.0,0.00021917,2]
[319467534,1710798653852,-500.0,0.00021917,2]
[319467535,1710798653867,-562.02,0.00021917,2]
[319467536,1710798653882,-3934.43,0.00021917,2]
[319467537,1710798653896,-500.0,0.00021917,2]
[319467538,1710798653911,-152.317252,0.00021917,2]
[319467539,1710798653926,-1237.13,0.00021917,2]
[319467540,1710798653940,-500.0,0.00021917,2]
[319467541,1710798653955,-631.46,0.00021917,2]
[319467542,1710798653970,-500.0,0.00021917,2]
[319467543,1710798653985,-1437.9,0.00021917,2]
[319467544,1710798654000,-152.317252,0.00021917,2]
[319467545,1710798654015,-500.0,0.00021917,2]
[319467546,1710798654030,-688.1,0.00021917,2]
[319467547,1710798654045,-1015.84,0.00021917,2]
[319467548,1710798654061,-3045.74,0.00021917,2]
[319467549,1710798654077,-1083.14,0.00021917,2]
[319467550,1710798654092,-747.55,0.00021917,2]
[319467551,1710798654109,-1695.95,0.00021917,2]
[319467552,1710798654124,-249.89187724,0.00021917,2]
[319467553,1710798654139,-1479.06,0.00021917,2]
[319467554,1710798654155,-500.0,0.00021917,2]
[319467555,1710798654170,-1015.85,0.00021917,2]
[319467556,1710798654184,-500.0,0.00021917,2]
[319467557,1710798654199,-500.0,0.00021917,2]
[319467558,1710798654215,-1741.39,0.00021917,2]
[319467559,1710798654230,-500.0,0.00021917,2]
[319467560,1710798654247,-500.0,0.00021917,2]
[319467561,1710798654263,-500.0,0.00021917,2]
[319467562,1710798654278,-869.55,0.00021917,2]
[319467563,1710798654292,-2146.05,0.00021917,2]
[319467564,1710798654309,-500.0,0.00021917,2]
[319467565,1710798654324,-500.0,0.00021917,2]
[319467566,1710798654339,-1702.03,0.00021917,2]
[319467567,1710798654353,-635.87,0.00021917,2]
[319467568,1710798654368,-2484.84,0.00021917,2]
[319467569,1710798654382,-2226.95,0.00021917,2]
[319467570,1710798654396,-915.57,0.00021917,2]
[319467571,1710798654410,-691.58,0.00021917,2]
[319467572,1710798654425,-500.0,0.00021917,2]
[319467573,1710798654435,-676.99,0.00021917,2]
[319467574,1710798654444,-1346.38,0.00021917,2]
[319467575,1710798654454,-572.02,0.00021917,2]
[319467576,1710798654714,-2485.93,0.00021917,2]
[319467577,1710798654735,-500.0,0.00021917,2]
[319467578,1710798654745,-5305.84,0.00021917,2]
[319467579,1710798654754,-1781.53,0.00021917,2]
[319467580,1710798654763,-728.16,0.00021917,2]
[319467581,1710798654772,-500.0,0.00021917,2]
[319467582,1710798654781,-500.0,0.00021917,2]
[319467583,1710798654790,-500.0,0.00021917,2]
[319467584,1710798654799,-239.031939,0.00021917,2]
[319467585,1710798654809,-627.89,0.00021917,2]
[319467586,1710798654818,-548.68,0.00021917,2]
[319467587,1710798654826,-500.0,0.00021917,2]
[319467588,1710798654835,-744.33,0.00021917,2]
[319467589,1710798654844,-500.0,0.00021917,2]
[319467590,1710798654854,-690.8,0.00021917,2]
[319467591,1710798654863,-151.0,0.00021917,2]
[319467592,1710798654872,-470.06999447,0.00021917,2]
[319467593,1710798654881,-1147.800979,0.00021917,2]
[319467594,1710798654890,-1013.68,0.00021917,2]
[319467595,1710798654899,-500.0,0.00021917,2]
[319467596,1710798654907,-1605.87,0.00021917,2]
[319467597,1710798654916,-500.0,0.00021917,2]
[319467598,1710798654925,-500.0,0.00021917,2]
[319467599,1710798654934,-1492.78,0.00021917,2]
[319467600,1710798654943,-239.031939,0.00021917,2]
[319467601,1710798654952,-500.0,0.00021917,2]
[319467602,1710798654961,-1790.1,0.00021917,2]
[319467603,1710798654970,-1638.46,0.00021917,2]
[319467604,1710798654979,-1147.800979,0.00021917,2]
[319467605,1710798654988,-500.0,0.00021917,2]
[319467606,1710798654997,-2024.74,0.00021917,2]
[319467607,1710798655006,-696.8,0.00021917,2]
[319467608,1710798655015,-535.16,0.00021917,2]
[319467609,1710798655024,-500.0,0.00021917,2]
[319467610,1710798655033,-500.0,0.00021917,2]
[319467611,1710798655042,-500.0,0.00021917,2]
[319467612,1710798655051,-2865.68,0.00021917,2]
[319467613,1710798655060,-16581.04,0.00021917,2]
[319467614,1710798655070,-934.42,0.00021917,2]
[319467615,1710798655079,-940.27,0.00021917,2]
[319467616,1710798655089,-1070.12,0.00021917,2]
[319467617,1710798655098,-500.0,0.00021917,2]
[319467618,1710798655108,-151.0,0.00021917,2]
[319467619,1710798655117,-532.77,0.00021917,2]
[319467620,1710798655126,-1293.45,0.00021917,2]
[319467621,1710798655135,-500.0,0.00021917,2]
[319467622,1710798655144,-500.0,0.00021917,2]
[319467623,1710798655153,-1268.57,0.00021917,2]
[319467624,1710798655163,-1435.99,0.00021917,2]
[319467625,1710798655172,-500.0,0.00021917,2]
[319467626,1710798655181,-500.0,0.00021917,2]
[319467627,1710798655190,-500.0,0.00021917,2]
[319467628,1710798655199,-640.4,0.00021917,2]
[319467629,1710798655208,-500.0,0.00021917,2]
[319467630,1710798655218,-500.0,0.00021917,2]
[319467631,1710798655227,-500.0,0.00021917,2]
[319467632,1710798655238,-2020.54,0.00021917,2]
[319467633,1710798655248,-500.0,0.00021917,2]
[319467634,1710798655257,-2023.89,0.00021917,2]
[319467635,1710798655267,-1562.22,0.00021917,2]
[319467636,1710798655277,-3316.33,0.00021917,2]
[319467637,1710798655286,-500.0,0.00021917,2]
[319467638,1710798655296,-300.0,0.00021917,2]
[319467639,1710798655306,-500.0,0.00021917,2]
[319467640,1710798655317,-2143.11,0.00021917,2]
[319467641,1710798655327,-4036.75,0.00021917,2]
[319467642,1710798655337,-3857.08,0.00021917,2]
[319467643,1710798655346,-1212.26,0.00021917,2]
[319467644,1710798655355,-1574.41,0.00021917,2]
[319467645,1710798655365,-500.0,0.00021917,2]
[319467646,1710798655374,-599.66,0.00021917,2]
[319467647,1710798655383,-500.0,0.00021917,2]
[319467648,1710798655393,-500.0,0.00021917,2]
[319467649,1710798655402,-500.0,0.00021917,2]
[319467650,1710798655411,-251.9,0.00021917,2]
[319467651,1710798655421,-500.0,0.00021917,2]
[319467652,1710798655431,-1467.99,0.00021917,2]
[319467653,1710798655440,-500.0,0.00021917,2]
[319467654,1710798655450,-1064.8,0.00021917,2]
[319467655,1710798655460,-3361.6,0.00021917,2]
[319467656,1710798655469,-1837.99,0.00021917,2]
[319467657,1710798655480,-500.0,0.00021917,2]
[319467658,1710798655489,-500.0,0.00021917,2]
[319467659,1710798655499,-2601.91,0.00021917,2]
[319467660,1710798655508,-198.02942841,0.00021917,2]
[319467661,1710798655517,-831.72,0.00021917,2]
[319467662,1710798655527,-700.18,0.00021917,2]
[319467663,1710798655536,-500.0,0.00021917,2]
[319467664,1710798655546,-500.0,0.00021917,2]
[319467665,1710798655555,-8795.09,0.00021917,2]
[319467666,1710798655565,-500.0,0.00021917,2]
[319467667,1710798655575,-1314.27,0.00021917,2]
[319467668,1710798655584,-682.45,0.00021917,2]
[319467669,1710798655594,-500.0,0.00021917,2]
[319467670,1710798655603,-4964.77,0.00021917,2]
[319467671,1710798655613,-1259.05,0.00021917,2]
[319467672,1710798655622,-600.03,0.00021917,2]